bitfinex/quotes_SOLUSD_20240906
["timestamp","ask_amount","ask_price","bid_price","bid_amount"]
[1725648585345,2.5858,126.02,125.96,7.9388]
[1725648585346,7.9367,126.0,125.96,7.9388]
[1725648585871,2.5858,126.02,125.96,7.9388]
[1725648586040,7.9369,126.0,125.96,7.9388]
[1725648586656,7.9369,126.0,125.95,27.7885]
[1725648587658,2.5858,126.02,125.95,19.8491]
[1725648588035,7.9368,126.0,125.96,7.9389]
[1725648588236,7.936,126.01,125.96,19.847]
[1725648588457,7.936,126.01,125.96,27.7859]
[1725648588458,20.0,126.0,125.96,27.7859]
[1725648588666,20.0,126.0,125.96,19.847]
[1725648588667,27.9366,126.0,125.96,19.847]
[1725648588859,7.936,126.01,125.96,19.847]
[1725648589066,7.936,126.01,125.96,20.82953801]
[1725648589233,7.936,126.01,125.96,27.7858]
[1725648589438,7.9365,126.0,125.96,27.7858]
[1725648589751,2.5858,126.02,125.96,27.7858]
[1725648589752,7.936,126.01,125.97,7.9382]
[1725648590269,20.0,126.0,125.97,7.9382]
[1725648590566,10.5212,126.02,125.98,7.9376]
[1725648590767,7.936,126.01,125.96,27.7858]
[1725648591364,10.5211,126.02,125.97,0.98247765]
[1725648591554,20.0,126.01,125.96,69.847]
[1725648592070,20.0,126.01,125.96,70.82912122]
[1725648592366,20.0,126.01,125.98,7.9377]
[1725648593057,20.0,126.01,125.96,19.847]
[1725648593466,2.5858,126.02,125.97,7.9381]
[1725648594356,7.9361,126.01,125.97,7.9381]
[1725648594869,7.9365,126.0,125.96,27.7858]
[1725648595661,2.5858,126.02,125.96,27.7858]
[1725648595662,7.9359,126.01,125.97,7.9382]
[1725648595863,7.9359,126.01,125.96,27.7858]
[1725648596046,20.0,126.0,125.96,28.76839976]
[1725648596250,27.9365,126.0,125.96,27.7858]
[1725648597348,7.9375,125.99,125.95,7.9394]
[1725648598051,27.9367,126.0,125.95,27.7884]
[1725648598245,27.9367,126.0,125.96,7.9388]
[1725648598446,27.9367,126.0,125.97,7.9383]
[1725648598447,20.0,126.0,125.97,7.9383]
[1725648598647,10.5211,126.02,125.97,7.9383]
[1725648598865,2.5858,126.02,125.98,19.8444]
[1725648599053,2.5858,126.02,125.99,7.9367]
[1725648599463,10.5211,126.02,125.98,27.7815]
[1725648599861,2.5858,126.02,125.99,7.9371]
[1725648600041,22.5858,126.02,125.99,7.9371]
[1725648600447,22.5858,126.02,125.98,19.8444]
[1725648600650,22.5858,126.02,126.0,19.8412]
[1725648601549,22.5858,126.02,125.99,7.9369]
[1725648601746,22.5858,126.02,125.98,19.8443]
[1725648601747,30.5211,126.02,125.98,27.7818]
[1725648601960,22.5858,126.02,125.99,7.937]
[1725648603577,2.5858,126.02,126.0,19.8412]
[1725648603775,2.5858,126.02,126.01,30.128]
[1725648605076,7.931,126.09,126.04,7.9335]
[1725648605251,20.0,126.08,126.04,7.9339]
[1725648605451,20.0,126.08,126.03,20.81513995]
[1725648605452,20.0,126.08,126.03,27.7698]
[1725648605672,20.0,126.1,126.04,7.9337]
[1725648605872,7.9304,126.1,126.03,19.8353]
[1725648606076,7.9304,126.1,126.05,7.9328]
[1725648606381,7.9298,126.11,126.07,7.932]
[1725648606723,7.9298,126.11,126.06,7.9324]
[1725648606977,7.9304,126.1,126.05,27.7661]
[1725648607177,1.98266733,126.09,126.02,19.8378]
[1725648607356,7.9331,126.06,126.01,22.1922]
[1725648607554,7.9331,126.06,126.01,30.1279]
[1725648607965,7.9322,126.07,126.02,7.9347]
[1725648608157,20.0,126.06,126.02,7.9347]
[1725648608680,20.0,126.06,126.01,49.9674]
[1725648608884,39.8288,126.08,126.01,15.9827]
[1725648609060,7.9346,126.03,125.99,7.9369]
[1725648609378,39.8288,126.08,125.97,24.3673]
[1725648609379,7.9358,126.01,125.97,24.3673]
[1725648609558,27.9368,126.0,125.97,16.429]
[1725648609957,20.0,126.0,125.97,16.429]
[1725648610266,7.9377,125.99,125.95,25.9238]
[1725648610672,27.9365,126.0,125.95,25.9238]
[1725648611063,1.98429588,125.99,125.93,16.429]
[1725648611281,7.9372,125.99,125.93,16.429]
[1725648611585,20.0,125.98,125.94,7.9402]
[1725648611788,20.0,126.01,125.95,7.9396]
[1725648612086,27.936,126.01,125.95,57.9396]
[1725648612268,20.0,126.01,125.93,16.429]
[1725648612471,7.9372,125.99,125.93,16.429]
[1725648613083,7.9386,125.97,125.93,16.429]
[1725648613688,20.0,125.98,125.93,16.429]
[1725648613894,7.9402,125.94,125.93,16.429]
[1725648614204,7.941,125.93,125.91,6.1123]
[1725648614387,7.9404,125.94,125.91,6.1123]
[1725648614587,20.0,126.0,125.91,6.1123]
[1725648614797,39.8425,126.0,125.91,14.0539]
[1725648615093,20.0,126.0,125.91,6.1123]
[1725648615263,19.845,125.98,125.89,16.4358]
[1725648615470,7.9397,125.95,125.9,7.9423]
[1725648615674,20.0,125.94,125.9,8.92679321]
[1725648615982,20.0,125.94,125.89,36.294]
[1725648616289,27.9403,125.94,125.9,7.9423]
[1725648616472,20.0,125.94,125.9,7.9423]
[1725648616861,19.845,125.98,125.89,36.294]
[1725648617062,21.9849209,125.97,125.89,44.2372]
[1725648617302,21.9849209,125.97,125.88,6.501]
[1725648617303,7.9432,125.9,125.88,6.501]
[1725648617585,1.98560114,125.93,125.88,6.501]
[1725648617765,7.943,125.9,125.88,6.501]
[1725648618592,7.9424,125.91,125.88,6.501]
[1725648618999,19.8511,125.94,125.84,6.495]
[1725648619000,7.9453,125.86,125.84,6.495]
[1725648619163,21.84376403,125.9,125.81,24.176]
[1725648619490,7.9458,125.86,125.81,24.176]
[1725648619691,20.0,125.89,125.81,24.176]
[1725648619692,7.9435,125.89,125.83,7.9468]
[1725648619902,27.9441,125.88,125.83,7.9468]
[1725648620207,19.8528,125.93,125.83,19.8676]
[1725648620492,21.83863552,125.93,125.83,27.8147]
[1725648620677,7.9441,125.88,125.83,27.8147]
[1725648620876,20.0,125.92,125.85,19.8644]
[1725648621085,20.0,125.93,125.85,19.8644]
[1725648621271,23.10419194,125.94,125.85,19.8644]
[1725648621470,23.10419194,125.94,125.85,27.8102]
[1725648621675,7.9429,125.9,125.85,27.8102]
[1725648621878,27.9436,125.89,125.84,7.9465]
[1725648622207,7.9468,125.84,125.81,16.2276]
[1725648622372,1.98678504,125.87,125.8,6.495]
[1725648622664,7.9474,125.83,125.8,6.495]
[1725648622867,7.9479,125.82,125.77,30.5619]
[1725648623390,7.9479,125.82,125.77,30.5618]
[1725648623989,21.98707066,125.87,125.78,19.8751]
[1725648624591,20.0,125.87,125.8,19.8724]
[1725648624781,20.0,125.88,125.8,19.8724]
[1725648624982,7.9458,125.86,125.81,7.9484]
[1725648625290,20.0,125.85,125.81,7.9484]
[1725648625676,20.0,125.85,125.82,19.8692]
[1725648625891,4.1634,125.9,125.83,7.9471]
[1725648625892,7.9441,125.88,125.83,7.9471]
[1725648626073,20.0,125.87,125.83,7.9471]
[1725648626269,7.9434,125.89,125.84,7.9463]
[1725648627314,7.944,125.88,125.84,7.9463]
[1725648627589,20.0,125.87,125.83,7.947]
[1725648627974,20.0,125.87,125.84,7.9465]
[1725648628176,27.9441,125.88,125.83,7.9471]
[1725648629576,20.0,125.88,125.8,50.0]
[1725648629874,7.9435,125.89,125.84,50.6581]
[1725648630076,20.0,125.88,125.85,7.9455]
[1725648630577,27.9435,125.89,125.85,7.9455]
[1725648630790,27.9435,125.89,125.84,50.658]
[1725648631097,7.9442,125.88,125.84,50.658]
[1725648631497,27.9435,125.89,125.85,7.9459]
[1725648632076,7.9441,125.88,125.84,50.6582]
[1725648632500,27.9434,125.89,125.85,7.9458]
[1725648632879,27.9434,125.89,125.84,50.6581]
[1725648633075,20.0,125.89,125.84,16.4987]
[1725648633272,7.9461,125.85,125.81,19.8697]
[1725648633699,7.9455,125.86,125.82,7.9477]
[1725648634002,20.0,125.85,125.82,7.9477]
[1725648634302,20.0,125.85,125.83,7.9469]
[1725648634506,20.0,125.87,125.83,7.9469]
[1725648634809,20.0,125.89,125.85,7.9457]
[1725648635101,7.9438,125.89,125.81,40.72907049]
[1725648635309,7.9438,125.89,125.83,19.8665]
[1725648635310,20.0,125.88,125.83,19.8665]
[1725648635487,20.0,125.88,125.85,27.8103]
[1725648635796,20.0,125.88,125.85,19.8649]
[1725648636171,20.0,125.88,125.85,27.8105]
[1725648636975,20.0,125.89,125.85,27.8105]
[1725648637393,27.9434,125.89,125.85,27.8105]
[1725648637605,27.9434,125.89,125.82,50.0]
[1725648637606,7.9442,125.88,125.83,19.8679]
[1725648637899,7.9449,125.87,125.83,19.8679]
[1725648638110,27.9454,125.86,125.82,7.9474]
[1725648638405,27.9454,125.86,125.8,22.2563]
[1725648638406,7.947,125.84,125.8,30.2053]
[1725648638614,20.0,125.86,125.82,27.8167]
[1725648638778,21.98653281,125.92,125.81,89.7393]
[1725648639094,7.9424,125.91,125.86,7.9448]
[1725648639299,20.0,125.9,125.87,7.9445]
[1725648639798,20.0,125.9,125.86,7.9451]
[1725648640300,20.0,125.9,125.84,7.9463]
[1725648640509,7.9429,125.9,125.85,7.9453]
[1725648640825,20.0,125.89,125.85,7.9453]
[1725648641215,27.9434,125.89,125.84,27.8127]
[1725648641509,7.9442,125.88,125.84,27.8125]
[1725648641810,27.9436,125.89,125.85,7.9459]
[1725648642014,7.9436,125.89,125.85,7.9459]
[1725648642186,20.0,125.88,125.85,7.9459]
[1725648643790,20.0,125.88,125.84,19.8664]
[1725648644111,21.98597473,125.91,125.8,22.2563]
[1725648644305,7.9474,125.83,125.8,22.2563]
[1725648644500,7.9474,125.83,125.78,27.8258]
[1725648644925,7.9468,125.84,125.8,7.949]
[1725648645216,20.0,125.83,125.8,7.949]
[1725648645394,27.9473,125.83,125.79,7.9495]
[1725648645586,20.0,125.83,125.8,7.949]
[1725648646684,27.9474,125.83,125.78,27.8256]
[1725648646901,7.949,125.81,125.76,30.7372]
[1725648647214,7.949,125.81,125.77,7.9508]
[1725648647511,7.949,125.81,125.76,30.7376]
[1725648647817,21.98725303,125.83,125.73,7.9529]
[1725648647818,7.9504,125.78,125.73,7.9529]
[1725648648114,7.9499,125.79,125.74,7.9528]
[1725648648494,7.9492,125.8,125.74,19.8815]
[1725648648691,20.0,125.79,125.76,7.9512]
[1725648648994,7.9491,125.8,125.76,7.9512]
[1725648649308,7.9495,125.8,125.76,19.8785]
[1725648649715,7.9486,125.81,125.76,27.8297]
[1725648649901,20.0,125.8,125.77,7.9505]
[1725648650100,20.0,125.8,125.77,7.9509]
[1725648650297,27.9492,125.8,125.76,27.8299]
[1725648651592,7.9499,125.79,125.75,7.9521]
[1725648652424,20.0,125.8,125.76,7.951]
[1725648652593,7.9498,125.79,125.75,27.8323]
[1725648652934,20.0,125.82,125.76,7.9513]
[1725648653212,20.0,125.82,125.77,19.8773]
[1725648653418,7.9479,125.82,125.78,7.9502]
[1725648653599,20.0,125.81,125.78,7.9502]
[1725648653812,20.0,125.81,125.73,50.0]
[1725648653989,20.0,125.81,125.75,50.0]
[1725648654191,7.9474,125.83,125.76,0.98996846]
[1725648654489,7.9474,125.83,125.79,7.9493]
[1725648654704,20.0,125.82,125.79,7.9493]
[1725648654890,20.0,125.82,125.79,27.8236]
[1725648655085,7.9466,125.84,125.8,7.9489]
[1725648655628,25.12347301,125.87,125.79,19.8743]
[1725648655815,27.11028035,125.87,125.76,39.7568]
[1725648655997,27.11028035,125.87,125.76,40.74613722]
[1725648656312,7.9476,125.83,125.79,7.9496]
[1725648656518,20.0,125.82,125.79,7.9496]
[1725648658598,20.0,125.82,125.8,7.949]
[1725648658803,25.12347301,125.87,125.78,19.8757]
[1725648658804,27.9474,125.83,125.79,7.9496]
[1725648658997,20.0,125.83,125.79,7.9496]
[1725648659195,19.8649,125.85,125.75,19.8794]
[1725648659423,7.9491,125.8,125.76,7.9512]
[1725648659597,7.9487,125.81,125.78,7.9503]
[1725648659794,7.9486,125.81,125.77,27.8276]
[1725648660101,7.948,125.82,125.78,7.9502]
[1725648660714,27.9467,125.84,125.79,19.8741]
[1725648660912,7.9474,125.83,125.79,27.8238]
[1725648661115,20.0,125.82,125.77,19.8774]
[1725648661427,20.0,125.84,125.74,19.8809]
[1725648661428,1.98719978,125.81,125.74,19.8809]
[1725648661634,7.9498,125.79,125.75,7.9518]
[1725648662096,7.9512,125.77,125.74,19.8809]
[1725648662297,7.9512,125.77,125.73,7.9534]
[1725648664335,21.85914497,125.81,125.72,22.5491]
[1725648664336,19.8746,125.79,125.72,22.5491]
[1725648664530,7.9511,125.77,125.72,22.5491]
[1725648664821,20.0,125.78,125.71,19.886]
[1725648665031,1.98794767,125.77,125.7,7.9553]
[1725648665238,2.8198,125.81,125.7,7.9553]
[1725648665239,1.98837602,125.76,125.7,7.9553]
[1725648665898,20.0,125.78,125.71,7.9547]
[1725648665899,7.9524,125.75,125.71,7.9547]
[1725648666112,20.0,125.74,125.71,7.9547]
[1725648666822,22.692,125.81,125.7,19.888]
[1725648667023,20.0,125.8,125.7,19.888]
[1725648667221,7.9534,125.74,125.7,19.888]
[1725648667520,21.86396892,125.79,125.7,19.888]
[1725648667521,7.9524,125.75,125.71,7.9547]
[1725648668125,7.9518,125.76,125.71,7.9547]
[1725648668303,7.9518,125.76,125.7,19.888]
[1725648668304,20.0,125.75,125.72,7.9537]
[1725648669051,20.0,125.75,125.71,7.9545]
[1725648669332,7.9533,125.74,125.7,27.8433]
[1725648669542,7.4533,125.74,125.7,27.8433]
[1725648670812,20.0,125.75,125.72,19.8849]
[1725648671135,1.98799604,125.82,125.75,7.952]
[1725648671440,4.1634,125.83,125.76,19.8787]
[1725648671441,13.51821355,125.83,125.76,19.8787]
[1725648671642,17.30221355,125.83,125.79,7.9496]
[1725648671939,7.9464,125.85,125.8,7.9486]
[1725648672139,7.9454,125.86,125.81,45.0]
[1725648672309,7.9459,125.85,125.81,45.0]
[1725648672507,7.9453,125.86,125.82,7.9476]
[1725648672717,7.9453,125.86,125.83,45.0]
[1725648673034,7.9439,125.89,125.84,7.9464]
[1725648673330,4.1634,125.91,125.85,45.0]
[1725648673331,7.9441,125.88,125.85,45.0]
[1725648673840,19.858,125.9,125.8,6.2159]
[1725648674014,5.25685669,125.88,125.81,45.0]
[1725648674332,7.9454,125.86,125.81,52.9483]
[1725648674633,20.0,125.85,125.81,52.9483]
[1725648674802,20.0,125.85,125.82,7.9477]
[1725648675002,20.0,125.86,125.83,45.0]
[1725648675202,21.98661763,125.92,125.83,45.0]
[1725648675527,7.9453,125.86,125.82,45.0]
[1725648675714,7.9453,125.86,125.82,52.9477]
[1725648675715,20.0,125.85,125.82,52.9477]
[1725648675905,7.9453,125.86,125.82,52.9477]
[1725648675906,7.9439,125.89,125.83,19.8672]
[1725648676129,7.9439,125.89,125.84,52.9465]
[1725648676926,7.9442,125.88,125.84,52.9465]
[1725648677629,20.0,125.87,125.85,7.9457]
[1725648677931,20.0,125.88,125.86,45.0]
[1725648680212,29.91893701,125.94,125.86,52.9448]
[1725648680415,29.91893701,125.94,125.86,60.1787]
[1725648680416,7.24734105,125.93,125.86,60.1787]
[1725648680625,7.9433,125.9,125.86,60.1787]
[1725648680832,20.0,125.89,125.86,60.1787]
[1725648681138,7.9445,125.88,125.86,60.1787]
[1725648681816,19.8579,125.9,125.82,27.8165]
[1725648682032,20.0,125.89,125.81,23.8713]
[1725648682236,1.9865372,125.88,125.81,15.9229]
[1725648682413,27.24843196,125.89,125.81,15.9229]
[1725648682733,27.24843196,125.89,125.78,100.0]
[1725648682734,19.8639,125.86,125.78,100.0]
[1725648682915,21.98699397,125.85,125.78,100.0]
[1725648683524,7.9478,125.82,125.78,107.9501]
[1725648683936,20.0,125.85,125.79,52.9497]
[1725648684125,7.947,125.84,125.79,52.9497]
[1725648684532,20.0,125.83,125.79,52.9497]
[1725648684920,20.0,125.83,125.8,7.949]
[1725648685119,20.0,125.83,125.81,45.0]
[1725648685317,5.26177301,125.88,125.81,52.9482]
[1725648685637,7.9457,125.86,125.82,8.9359375]
[1725648685821,7.9457,125.86,125.83,45.0]
[1725648686638,20.0,125.85,125.83,45.0]
[1725648689436,27.9459,125.85,125.83,45.0]
[1725648689633,1.98636207,125.92,125.82,45.0]
[1725648689943,1.98639462,125.89,125.81,45.0]
[1725648690251,1.98639462,125.89,125.79,19.874]
[1725648690438,3.06245045,125.88,125.79,19.874]
[1725648690742,1.98683118,125.87,125.79,19.874]
[1725648690936,3.06245045,125.88,125.79,27.8237]
[1725648691518,7.9474,125.83,125.79,27.8237]
[1725648691720,7.9474,125.83,125.8,45.0]
[1725648692622,1.9867726,125.9,125.81,27.8192]
[1725648692623,7.9457,125.86,125.81,27.8192]
[1725648692821,20.0,125.85,125.82,52.9475]
[1725648693019,20.0,125.85,125.82,45.98849476]
[1725648693221,20.0,125.85,125.82,52.9477]
[1725648693438,7.9448,125.87,125.82,52.9477]
[1725648693621,7.9443,125.88,125.83,19.868]
[1725648693834,7.9443,125.88,125.84,52.9462]
[1725648694018,19.8584,125.9,125.84,45.0]
[1725648694019,7.9447,125.87,125.84,45.0]
[1725648695927,7.9441,125.88,125.84,59.0564]
[1725648696133,20.0,125.87,125.85,7.9457]
[1725648696431,20.0,125.87,125.86,45.0]
[1725648696771,7.9429,125.9,125.86,7.9453]
[1725648696947,7.9429,125.9,125.87,45.0]
[1725648697453,7.9434,125.89,125.87,45.0]
[1725648697652,7.9434,125.89,125.86,45.0]
[1725648697960,7.9429,125.9,125.86,52.9451]
[1725648698254,20.0,125.89,125.86,52.9451]
[1725648698430,20.0,125.89,125.86,45.0]
[1725648698624,7.9441,125.88,125.86,45.0]
[1725648698853,20.0,125.89,125.84,30.5614]
[1725648698854,20.0,125.89,125.84,22.6153]
[1725648699023,7.9449,125.87,125.84,22.6153]
[1725648699951,7.9436,125.89,125.85,7.9459]
[1725648700136,7.943,125.9,125.84,72.6153]
[1725648700343,7.943,125.9,125.85,45.0]
[1725648700531,7.943,125.9,125.86,7.9451]
[1725648700737,7.943,125.9,125.87,45.0]
[1725648700933,7.9438,125.89,125.87,45.0]
[1725648701136,7.9438,125.89,125.86,45.0]
[1725648701853,31.19297332,125.93,125.86,45.0]
[1725648702025,7.9445,125.88,125.86,45.0]
[1725648702225,7.9435,125.89,125.85,52.9459]
[1725648702852,20.0,125.92,125.86,7.945]
[1725648703060,21.98591215,125.92,125.87,45.0]
[1725648703558,7.9435,125.89,125.87,45.0]
[1725648703759,7.9435,125.89,125.86,45.0]
[1725648703928,20.0,125.92,125.86,45.0]
[1725648703929,7.9447,125.87,125.86,45.0]
[1725648704129,7.9447,125.87,125.85,45.0]
[1725648704942,21.98622843,125.92,125.85,45.0]
[1725648704943,7.9444,125.88,125.85,45.0]
[1725648705141,7.9437,125.89,125.85,52.9458]
[1725648705529,20.0,125.88,125.85,52.9458]
[1725648706163,20.0,125.88,125.86,7.9453]
[1725648706359,20.0,125.89,125.87,45.0]
[1725648707035,27.9438,125.89,125.87,45.0]
[1725648707263,9.35481355,125.93,125.86,45.0]
[1725648707448,9.89671496,125.94,125.9,7.9424]
[1725648707449,7.9407,125.94,125.9,7.9424]
[1725648707656,7.9409,125.93,125.91,45.0]
[1725648708256,7.9409,125.93,125.89,7.9431]
[1725648708257,7.9409,125.93,125.9,45.0]
[1725648708858,20.0,125.92,125.9,45.0]
[1725648709065,7.9421,125.91,125.9,45.0]
[1725648709559,27.9421,125.91,125.9,45.0]
[1725648710356,7.944,125.89,125.85,7.9458]
[1725648710751,7.9442,125.88,125.84,50.4281]
[1725648711270,7.9442,125.88,125.85,7.9459]
[1725648711559,7.9436,125.89,125.85,7.9459]
[1725648711781,20.0,125.88,125.85,7.9459]
[1725648712348,20.0,125.88,125.86,52.945]
[1725648712546,20.0,125.89,125.86,52.945]
[1725648712947,7.9418,125.92,125.87,0.98671887]
[1725648713165,19.8491,125.96,125.87,0.98593986]
[1725648713331,7.9413,125.93,125.89,7.9433]
[1725648713537,7.9413,125.93,125.9,45.0]
[1725648717642,19.8491,125.96,125.9,52.9426]
[1725648717853,20.0,125.95,125.9,52.9426]
[1725648719069,20.0,125.95,125.9,45.0]
[1725648719364,21.9851387,125.95,125.9,45.0]
[1725648719566,25.04758915,125.95,125.88,19.8597]
[1725648719768,25.04758915,125.95,125.87,7.9443]
[1725648720353,23.06245045,125.95,125.87,7.9443]
[1725648720554,25.04790656,125.95,125.86,19.8633]
[1725648721071,23.06245045,125.95,125.86,27.8085]
[1725648721269,3.06245045,125.95,125.86,27.8085]
[1725648721467,1.98549442,125.94,125.84,42.4816]
[1725648721799,5.04832369,125.93,125.84,22.6153]
[1725648722265,20.0,125.92,125.84,22.6153]
[1725648722480,20.0,125.92,125.84,81.54837]
[1725648722774,3.06245045,125.93,125.85,7.9459]
[1725648723479,1.98567916,125.92,125.84,22.6153]
[1725648723688,21.98567916,125.92,125.81,6.2282]
[1725648723859,3.06245045,125.91,125.81,6.2282]
[1725648724053,3.06245045,125.91,125.77,19.8767]
[1725648724054,1.98690511,125.9,125.78,6.2282]
[1725648724265,21.98690511,125.9,125.78,6.2282]
[1725648724557,7.9497,125.79,125.78,6.2282]
[1725648724860,7.9486,125.81,125.78,6.2282]
[1725648725261,7.9479,125.82,125.78,6.2282]
[1725648725471,7.9479,125.82,125.78,14.1784]
[1725648725665,7.9473,125.83,125.79,7.9496]
[1725648725974,7.9483,125.82,125.78,26.1037]
[1725648726361,19.867,125.84,125.78,6.2282]
[1725648726678,7.9491,125.8,125.78,6.2282]
[1725648726977,7.9486,125.81,125.78,6.2282]
[1725648727357,20.0,125.83,125.78,6.2282]
[1725648727555,7.9468,125.84,125.8,7.949]
[1725648727857,20.0,125.83,125.81,45.0]
[1725648728089,20.0,125.83,125.8,45.0]
[1725648728458,7.948,125.82,125.8,45.0]
[1725648728758,7.948,125.82,125.79,45.0]
[1725648729283,7.9473,125.83,125.79,45.0]
[1725648729486,7.9468,125.84,125.79,52.9497]
[1725648729660,7.946,125.85,125.81,19.8706]
[1725648729860,7.9466,125.84,125.82,45.0]
[1725648730370,7.9466,125.84,125.81,45.0]
[1725648730576,7.9473,125.83,125.81,45.0]
[1725648731164,7.9473,125.83,125.8,45.0]
[1725648731882,7.9466,125.84,125.8,52.9488]
[1725648732180,7.9449,125.87,125.82,7.9474]
[1725648732384,7.9449,125.87,125.83,45.0]
[1725648733255,7.9441,125.88,125.84,7.9464]
[1725648733568,7.9441,125.88,125.85,45.0]
[1725648733966,7.9441,125.88,125.85,51.0139]
[1725648734168,7.945,125.87,125.85,51.0139]
[1725648736489,3.06736677,125.89,125.85,45.0]
[1725648736675,3.06736677,125.89,125.82,6.1331]
[1725648736676,23.06736677,125.89,125.82,6.1331]
[1725648736863,1.98644814,125.88,125.83,45.0]
[1725648737064,28.81579633,125.88,125.83,45.0]
[1725648737393,1.98656688,125.87,125.82,6.1331]
[1725648737758,26.82934819,125.88,125.82,6.1331]
[1725648737956,26.82934819,125.88,125.83,0.98850426]
[1725648737957,20.0,125.88,125.83,0.98850426]
[1725648738192,20.0,125.92,125.84,7.9461]
[1725648738873,20.0,125.92,125.85,45.0]
[1725648739268,1.98601111,125.91,125.84,45.0]
[1725648739690,1.98601111,125.91,125.83,45.0]
[1725648739691,1.98625583,125.9,125.83,45.0]
[1725648739997,21.98625583,125.9,125.83,45.0]
[1725648740166,8.95782607,125.91,125.84,50.98784965]
[1725648740365,3.78210403,125.98,125.88,56.1478]
[1725648740573,19.8475,125.97,125.89,65.8433914]
[1725648740765,19.8427,126.0,125.91,7.942]
[1725648740968,1.98476695,125.99,125.92,45.0]
[1725648741274,7.9405,125.94,125.91,45.0]
[1725648741589,7.9405,125.94,125.9,52.9427]
[1725648742788,20.64347723,125.99,125.9,45.0]
[1725648742789,7.941,125.93,125.9,45.0]
[1725648743685,7.941,125.93,125.91,0.98539174]
[1725648743891,7.941,125.93,125.9,45.98513896]
[1725648744200,7.941,125.93,125.87,15.2659]
[1725648744201,7.9434,125.89,125.87,15.2659]
[1725648744489,7.9434,125.89,125.85,34.3138]
[1725648744490,7.7510971,125.94,125.85,6.5043]
[1725648744666,19.8559,125.91,125.85,6.5043]
[1725648744984,7.9447,125.87,125.85,6.5043]
[1725648745186,7.9441,125.88,125.85,6.5043]
[1725648745568,7.9435,125.89,125.85,14.4501]
[1725648745897,7.943,125.9,125.86,7.9453]
[1725648746068,7.9423,125.91,125.87,7.9442]
[1725648746274,7.9423,125.91,125.88,45.0]
[1725648747181,7.9417,125.92,125.88,52.944]
[1725648747374,27.9422,125.91,125.88,45.0]
[1725648747585,7.941,125.93,125.89,7.9433]
[1725648747787,7.941,125.93,125.9,61.5785]
[1725648749083,23.84873933,125.97,125.9,61.5785]
[1725648749273,20.0,125.96,125.9,61.5785]
[1725648750577,20.0,125.96,125.9,69.5212]
[1725648751590,7.9411,125.93,125.9,61.5785]
[1725648752402,7.9419,125.92,125.9,16.5785]
[1725648752895,20.0,125.96,125.9,86.435]
[1725648753073,7.9398,125.95,125.9,36.435]
[1725648753273,20.0,125.98,125.92,27.7948]
[1725648753491,7.9393,125.96,125.92,27.7948]
[1725648753699,20.0,125.95,125.92,27.7948]
[1725648753873,20.0,125.95,125.92,19.8536]
[1725648754081,7.9402,125.94,125.93,45.0]
[1725648754281,7.9402,125.94,125.92,45.0]
[1725648755691,19.8458,125.98,125.92,45.98498284]
[1725648755998,7.9394,125.96,125.92,53.92608284]
[1725648756297,7.9394,125.96,125.92,52.9411]